[Event "Lliga Catalana DH 2023"]
[Site "Catalonia"]
[Date "2023.03.18"]
[Round "9.1"]
[White "Edouard, Romain"]
[Black "Barseghyan, Harutyun"]
[Result "1-0"]
[ECO "A28"]
[WhiteElo "2532"]
[BlackElo "2431"]
[Annotator "TA"]
[PlyCount "109"]
[EventDate "2023.01.24"]
[EventType "team-tourn"]
[EventCountry "ESP"]
[SourceTitle "playchess.com"]
[Source "ChessBase"]
[SourceQuality "1"]
[TimeControl "40/5400+30:1800+30"]

{[%evp 9,109,0,11,0,2,16,12,0,12,8,15,15,13,5,23,-16,-7,-16,-19,-12,-8,-10,-7,0,-4,0,0,-42,-40,-47,-48,-45,-50,-50,-24,-67,-56,-54,-57,-60,-81,-153,-92,-109,-100,-110,-54,-60,-56,-84,-22,-94,-104,-108,-72,-104,-105,-104,-31,-31,-31,-41,-31,-33,-24,-32,-30,-42,-35,-31,-20,-34,-29,-40,-37,-45,0,-13,8,0,8,8,6,6,11,8,98,77,40,35,79,58,421,440,404,381,478,441,478,468,29982,29983]} 1. c4 Nf6 2. Nc3 e5 3. Nf3 Nc6 4. e4 Bb4 5. d3 d6 6. a3 {A28: English Opening: Four Knights Variation.} Bc5 7. b4 Bb6 8. Na4 {The position is equal.} Bg4 9. Be2 Bxf3 10. Bxf3 Bd4 11. Rb1 Nd7 {[#]} 12. b5 $146 ({Predecessor:} 12. Bd2 Nf8 13. Nc3 Ne6 14. O-O a5 15. Bg4 axb4 16. axb4 O-O 17. Kh1 Ne7 18. Ne2 {½-½ Gelfand,B (2655)-Deac,B (2609) EU-ch 20th Skopje 2019 (8)}) 12... Ncb8 13. Be3 Bxe3 14. fxe3 Qh4+ 15. g3 Qg5 16. Qe2 h5 17. Nc3 Nf6 18. Kd2 a6 19. h4 Qg6 20. Rhg1 axb5 21. Nxb5 Na6 22. g4 hxg4 23. Bxg4 {[%cal Og4d7] And now Bd7+! would win.} Qh6 24. Qf3 Ke7 25. Bh3 (25. Kc2 $142) 25... c6 (25... Nc5 $142 {White must now prevent ...c6.} 26. Kc2 Qxh4) 26. Nc3 Nc5 (26... Qxh4 $6 27. Rxb7+ Kf8 28. Rh1 $11 (28. Qg2 g5 $11)) 27. a4 Kd8 (27... Nxa4 $2 28. Rxb7+ Kf8 29. Ra1 (29. Nxa4 Rxa4 30. c5 Qxh4 $16) 29... Qxh4 30. Bg2 $16 (30. Rxa4 Rxa4 31. Rb8+ Ne8 $11)) ({Better is} 27... Qxh4 $17 28. Rh1 Qh5) 28. Rg5 $1 $15 Kc7 29. Rbg1 Rhg8 (29... Nxa4 $6 30. Rxg7 Rhf8 31. h5 Nxc3 32. R1g6 Ra2+ 33. Kxc3 $11) (29... Rag8 $1 $17) 30. Rf5 (30. Qg3 $1 $11 {keeps the balance.}) 30... Qxh4 $17 (30... Nxa4 $2 31. Nxa4 (31. Rxf6 gxf6 32. Rxg8 Rxg8 $15) 31... Rxa4 32. Rxf6 gxf6 33. Rxg8 $18) 31. Rh1 Raf8 ({Much worse is} 31... Nxa4 $6 32. Bg2 $11) 32. Bf1 Qg4 33. Qf2 {Hoping for Rg1.} Rh8 (33... Qg6 $1 $17 34. Rg1 Qh6) 34. Rg1 $15 Qh4 (34... Nb3+ $2 35. Kc2 Na1+ 36. Kb1 $18) 35. Rxg7 Qxf2+ 36. Rxf2 Rh6 37. Rg5 (37. Be2 {with more complications.} Kd7 38. Bd1 Ke6 39. Bc2) 37... Kd7 38. Be2 Ke7 39. Rg1 Ra8 40. Rb1 Ra7 41. Kc2 Rh7 42. Rbf1 Rh6 43. d4 Ne6 44. Kd3 {[%cal Oc4c5]} Ra8 {[#]} 45. c5 $1 {[%mdl 64] Deflection} dxc5 46. dxe5 Nd7 {Excellent horsemanship.} ({Don't play} 46... Rd8+ 47. Kc2 Nd7 48. Rxf7+ Ke8 49. R1f2 $16) 47. Rxf7+ Kd8 {[#]} (47... Ke8 $11 48. Kd2 Rh2) 48. Kc2 $1 $36 {[%mdl 2048] aiming for Rd1. White is in control.} Ke8 {Black is weak on the light squares} 49. Bg4 Rd8 50. R7f5 {White has more active pieces.} (50. Bxe6 {simplifies} Rxe6 51. Rh7 Nxe5 52. Rb1) 50... Ke7 $2 {[%mdl 8192] [#] Loses the game.} (50... Ra8 $1 $14) 51. Nd5+ $1 $18 {[%mdl 512]} cxd5 52. exd5 {[%cal Be4d5,Bd5e6][%mdl 32]} Rf8 {[%cal Od7e5] Against Rf7+} 53. dxe6 {Intending Rf7+ and mate.} Rxf5 54. Rxf5 Rh4 (54... Rxe6 $18 55. Rh5 Rxe5 56. Rh7+ {[%mdl 64] Skewer, Deflection} Kf6 57. Bxd7 Kg6) 55. Rf7+ {Weighted Error Value: White=0.10 (very precise) /Black=0.37} 1-0

[Event "Lliga Catalana DH 2023"]
[Site "Catalonia"]
[Date "2023.03.18"]
[Round "9.1"]
[White "Movsziszian, Karen"]
[Black "Miranda Mesa, Elier"]
[Result "1/2-1/2"]
[ECO "C25"]
[WhiteElo "2472"]
[BlackElo "2517"]
[Annotator "TA"]
[PlyCount "104"]
[EventDate "2023.01.24"]
[EventType "team-tourn"]
[EventCountry "ESP"]
[SourceTitle "playchess.com"]
[Source "ChessBase"]
[SourceQuality "1"]
[TimeControl "40/5400+30:1800+30"]

{[%evp 9,103,0,0,-29,-10,-20,-12,-20,-9,-15,6,6,7,7,7,7,9,6,13,14,21,11,11,11,11,11,19,11,23,22,18,11,25,33,36,25,33,42,30,6,10,10,13,6,8,7,8,8,14,10,21,6,6,6,6,5,10,10,12,10,12,12,36,34,85,17,30,0,0,0,0,0,0,0,32,0,0,0,0,0,0,0,0,0,0,0,0,0,0,0,0,0,0,0,0,0]} 1. g3 {[%emt 0:00:05]} e5 {[%emt 0:00:36]} 2. Bg2 {[%emt 0:00:16]} Nc6 {[%emt 0:00:15]} 3. d3 {[%emt 0:00:14]} Bc5 {[%emt 0:00:20]} 4. Nc3 {[%emt 0:05:43]} a6 {[%emt 0:07:30]} 5. e4 {[%emt 0:00:48]} d6 {[%emt 0:00:57]} 6. h3 {[%emt 0:01:00] C25: Vienna Game: Alternatives to 2...Nf6.} Nge7 {[%emt 0:01:37]} 7. Be3 {[%emt 0:03:56]} Be6 {[%emt 0:09:50]} 8. Nge2 {[%emt 0:15:19] [#]} Bxe3 $146 {[%emt 0:09:24]} ({Predecessor:} 8... Ba7 9. Bxa7 Nxa7 10. Qd2 c6 11. f4 f6 12. d4 b5 13. fxe5 fxe5 14. O-O-O b4 15. Na4 Qa5 16. b3 O-O 17. dxe5 Qxe5 18. Qd4 Qg5+ 19. Qd2 {½-½ Ganem,P-Moore,R US Open-96 Concord 1995 (8)}) 9. fxe3 {[%emt 0:00:02]} d5 {[%emt 0:00:30]} 10. exd5 {[%emt 0:00:57]} Nxd5 {[%emt 0:00:11]} 11. Qd2 {[%emt 0:00:23]} Qd7 {[%emt 0:05:50]} 12. O-O-O {[%emt 0:01:52]} O-O-O {[%emt 0:06:09]} 13. Kb1 {[%emt 0:02:04]} Rhe8 {[%emt 0:10:04]} 14. g4 {[%emt 0:01:32]} f6 {[%emt 0:02:43]} 15. Nxd5 {[%emt 0:05:48]} Bxd5 {[%emt 0:00:02]} 16. Nc3 {[%emt 0:00:07]} Bxg2 {[%emt 0:02:44]} 17. Qxg2 {[%emt 0:00:17]} Ne7 {[%emt 0:01:55]} 18. Rdf1 {[%emt 0:02:03]} Qe6 {[%emt 0:03:41]} 19. h4 {[%emt 0:04:15]} Rf8 {[%emt 0:04:40]} 20. Rf2 {[%emt 0:02:19]} g6 {[%emt 0:02:46]} 21. e4 {[%emt 0:05:02]} Rf7 {[%emt 0:01:35]} 22. Rhf1 {[%emt 0:02:44]} Rdf8 {[%emt 0:00:15]} 23. a3 {[%emt 0:03:07]} Kb8 {[%emt 0:03:23]} 24. Qg3 {[%emt 0:10:52]} f5 {[%emt 0:05:38]} 25. gxf5 {[%emt 0:01:15]} gxf5 {[%emt 0:00:04]} 26. exf5 {[%emt 0:01:21]} Rxf5 {[%emt 0:01:27]} 27. Rxf5 {[%emt 0:00:25]} Rxf5 {[%emt 0:00:07]} 28. Rxf5 {[%emt 0:05:42]} Nxf5 $11 {[%emt 0:01:59][%mdl 4096] Endgame KQN-KQN} 29. Qg5 {[%emt 0:00:41]} Ka7 {[%emt 0:04:53]} 30. h5 {[%emt 0:01:14]} h6 {[%emt 0:04:32]} 31. Qg4 {[%emt 0:05:31]} Qf7 {[%emt 0:01:25]} 32. Qf3 {[%emt 0:02:08]} Qe6 {[%emt 0:01:33]} 33. Ne4 {[%emt 0:01:32]} Nd6 {[%emt 0:00:59]} 34. Nd2 {[%emt 0:07:18]} b6 {[%emt 0:01:15]} 35. Qc6 {[%emt 0:02:21]} Qf7 {[%emt 0:01:29]} 36. Nf3 {[%emt 0:01:23]} Qg7 {[%emt 0:04:16]} ({Black should try} 36... Qe7 $1 $14) 37. c4 {[%emt 0:02:04] White is more active.} (37. Qc3 $16) 37... Kb8 {[%emt 0:01:27]} 38. Ka2 {[%emt 0:00:28]} Qf6 {[%emt 0:00:53][%cal Oe5e4] [#] aiming for ...e4!} 39. Qd5 {[%emt 0:00:13]} Nf7 {[%emt 0:00:16]} 40. d4 {[%emt 0:02:51]} exd4 {[%emt 0:00:09]} 41. Nxd4 {[%emt 0:30:02]} Nd8 {[%emt 0:30:24]} 42. a4 {[%emt 0:02:03]} Kc8 {[%emt 0:00:37] The position is equal.} 43. Qe4 {[%emt 0:01:33]} Qd6 {[%emt 0:00:57]} 44. Qg4+ {[%emt 0:00:44]} Kb8 {[%emt 0:00:11]} 45. Qe4 {[%emt 0:00:31]} Kc8 {[%emt 0:00:43]} 46. Qg4+ {[%emt 0:00:46]} Qd7 {[%emt 0:00:38]} 47. Nf5 {[%emt 0:00:34] [#] White wants to mate with Ne7+.} Nf7 {[%emt 0:00:37]} 48. b3 {[%emt 0:00:33]} Qd2+ {[%emt 0:00:31]} 49. Kb1 {[%emt 0:00:29] Nd6+ is the strong threat.} Qd3+ {[%emt 0:00:25]} 50. Kb2 {[%emt 0:00:01] Threatens to win with Nd6+.} Qd2+ {[%emt 0:00:24]} 51. Kb1 {[%emt 0:00:01] Strongly threatening Nd6+.} Qd3+ {[%emt 0:00:30]} 52. Kb2 {[%emt 0:00:03] Black must now prevent Nd6+.} Qd2+ {[%emt 0:00:20] Weighted Error Value: White=0.06 (flawless) /Black=0.05 (flawless)} 1/2-1/2

[Event "Lliga Catalana DH 2023"]
[Site "Catalonia"]
[Date "2023.03.18"]
[Round "9.2"]
[White "Perez Mitjans, Orelvis"]
[Black "Barbero Sendic, Alejandro"]
[Result "1-0"]
[ECO "B27"]
[WhiteElo "2344"]
[BlackElo "2351"]
[Annotator "TA"]
[PlyCount "59"]
[EventDate "2023.01.24"]
[EventType "team-tourn"]
[EventCountry "ESP"]
[SourceTitle "playchess.com"]
[Source "ChessBase"]
[SourceQuality "1"]
[TimeControl "40/5400+30:1800+30"]

{[%evp 14,59,5,10,15,0,0,14,5,6,25,-8,61,67,68,62,91,83,89,75,120,112,148,139,133,91,103,77,285,176,285,272,301,75,78,89,231,229,220,236,285,297,420,404,679,450,679,677]} 1. e4 {[%emt 0:00:30]} c5 {[%emt 0:00:54]} 2. Nf3 {[%emt 0:00:00]} g6 {[%emt 0:00:10]} 3. d4 {[%emt 0:05:48]} cxd4 {[%emt 0:00:15]} 4. Qxd4 {[%emt 0:00:26]} Nf6 {[%emt 0:00:16]} 5. Nc3 {[%emt 0:03:30]} Nc6 {[%emt 0:00:18]} 6. Qa4 {[%emt 0:00:03]} d6 {[%emt 0:00:20]} 7. e5 {[%emt 0:00:26]} dxe5 {[%emt 0:00:16]} 8. Nxe5 {[%emt 0:00:02][%cal Of1c4]} Bg7 {[%emt 0:00:20] B27: Sicilian: 2 Nf3, unusual Black 2nd moves.} 9. Bc4 {[%emt 0:05:56] Against Nd5} O-O {[%emt 0:00:53]} 10. Nxc6 {[%emt 0:00:02]} bxc6 {[%emt 0:00:12] The position is equal.} 11. O-O {[%emt 0:00:20][%cal Bh1f1,Bf1d1,Bd1d2][%mdl 32]} Qc7 {[%emt 0:01:26]} 12. h3 {[%emt 0:02:59][%cal Oc1f4] [#] Repels Ng4} (12. Bf4 $5 Qb6 13. Rab1 $11) 12... e5 $146 {[%emt 0:06:26]} (12... e6 $11) ({Predecessor:} 12... e6 13. Bb3 Nd5 14. Ne2 c5 15. Qh4 Bb7 16. c3 Ne7 17. Bc2 Rfe8 18. Bh6 Qc6 {0-1 Mitchell,R (1668)-Bejtovic,J (2408) SCO-ch 119th 2012 (1)}) 13. Be3 $14 {[%emt 0:05:43]} Bf5 {[%emt 0:03:43]} 14. Rfd1 {[%emt 0:03:25]} Nd7 {[%emt 0:00:59][%cal Bf6d7,Bd7b6,Bb6d5][%mdl 32]} 15. Bb3 {[%emt 0:04:39] White is much more active. The black rooks are badly placed.} Nb6 {[%emt 0:01:10]} 16. Qa5 {[%emt 0:02:18]} (16. Qh4 {keeps more tension.} Rfe8 17. Rd2 Rad8 18. Rad1) 16... Qb7 {[%emt 0:03:57]} 17. Rd2 {[%emt 0:01:16]} Be6 {[%emt 0:03:32]} 18. Bxe6 {[%emt 0:22:00]} fxe6 {[%emt 0:00:10]} 19. b3 {[%emt 0:00:05] Inhibits Nc4. Hoping for Ne4.} Nd5 {[%emt 0:06:29]} 20. Ne4 {[%emt 0:02:28]} Qf7 $2 {[%emt 0:08:29] [#]} (20... Qb5 $16 {was necessary.} 21. Qa3 Nxe3) 21. Rad1 {[%emt 0:05:59]} Qf5 {[%emt 0:04:10]} (21... Nxe3 $142 22. fxe3 g5) 22. Ng3 $18 {[%emt 0:04:20]} Qf6 {[%emt 0:00:10]} 23. c4 $2 {[%emt 0:01:34]} (23. Bxa7 $2 Rf7 24. Qc5 (24. Ne4 $2 Qf4 $19) 24... Raxa7 $19) (23. Bc5 $18) 23... Nxe3 $16 {[%emt 0:00:17]} 24. fxe3 {[%emt 0:00:02]} Qh4 {[%emt 0:01:36]} (24... Qg5 $16 25. Kh2 Qxe3) 25. Kh2 $18 {[%emt 0:02:48]} e4 {[%emt 0:03:43]} 26. Rd7 {[%emt 0:03:39]} Bf6 {[%emt 0:14:33]} 27. Rb7 {[%emt 0:06:28]} (27. Rxa7 $2 Rxa7 28. Qc5 Raf7 $19) 27... Rad8 {[%emt 0:06:17]} (27... Rac8 $142 28. Rdd7 h5) 28. Rxd8 {[%emt 0:04:26]} Rxd8 {[%emt 0:00:07]} (28... Bxd8 $142 29. Qxa7 Bf6) 29. Rxa7 {[%emt 0:02:09] [#] And now Qc7 would win.} (29. Qxa7 $2 {perishes.} Be5 $19) 29... Rf8 {[%emt 0:01:55]} (29... Ba1 $142 30. Qc7 Qf6 31. Qxh7+ Kf8 32. Nxe4 Qe5+ 33. Ng3 Qf6) 30. Qc7 {[%emt 0:01:00] Weighted Error Value: White=0.40/Black=0.73} 1-0

[Event "Lliga Catalana DH 2023"]
[Site "Catalonia"]
[Date "2023.03.18"]
[Round "9.2"]
[White "Vidarte Morales, Arturo"]
[Black "Peralta, Fernando"]
[Result "0-1"]
[ECO "E21"]
[WhiteElo "2276"]
[BlackElo "2596"]
[Annotator "TA"]
[PlyCount "106"]
[EventDate "2023.01.24"]
[EventType "team-tourn"]
[EventCountry "ESP"]
[SourceTitle "playchess.com"]
[Source "ChessBase"]
[SourceQuality "1"]
[TimeControl "40/5400+30:1800+30"]

{[%evp 9,106,13,25,0,25,22,29,20,20,20,22,29,25,22,21,-27,-33,-16,-29,-93,-68,-118,-134,-118,-49,-126,-116,-108,-100,-114,-114,-114,-111,-121,-127,-121,-68,-66,-66,-66,-68,-68,-68,-66,-70,-187,-187,-187,-187,-292,-278,-224,-253,-709,-383,-632,-610,-947,-630,-925,-874,-858,-857,-799,-766,-833,-150,-115,-115,-133,-147,-310,-310,-310,-275,-308,-309,-306,-302,-303,-302,-243,-283,-279,-260,-265,-244,-29979,-29980,-29980,-29981,-29981,-29982,-29985,-29986,-29986,-29987,-29987,-29988]} 1. c4 e6 2. Nc3 Bb4 3. Nf3 Nf6 4. d4 Bxc3+ 5. bxc3 d6 6. Bg5 {E21: Nimzo-Indian: 4 Nf3.} Nbd7 7. Nd2 h6 8. Bh4 {White has an edge.} Qe7 9. e3 b6 10. Be2 Bb7 11. O-O e5 12. Qc2 (12. Bg3 {is superior.}) 12... g5 $11 13. Bg3 {[#]} O-O-O $146 ({Predecessor:} 13... h5 14. h4 Rg8 15. hxg5 Rxg5 16. d5 Qf8 17. Bh4 Rg8 18. Ne4 Qg7 19. Ng3 O-O-O {0-1 Kacheishvili,G (2590)-Sadvakasov,D (2616) Eastern Class-ch 2009 (5)}) 14. Rae1 (14. Qf5 $11 {remains equal.}) 14... h5 $1 $36 {[%mdl 2048] White must now prevent ...h4. Black has some pressure.} 15. f3 ({Better is} 15. h4 $1 $15) 15... h4 16. Bf2 h3 (16... e4 $17 17. h3 Kb8) 17. g3 (17. g4 $1 $15) 17... e4 $1 18. d5 {[%cal Rf3e4]} Rde8 19. Nxe4 Nxe4 20. fxe4 Qxe4 21. Qxe4 Rxe4 22. Bd3 {[#]} Nc5 23. Bxe4 $15 Nxe4 24. Rd1 $1 Re8 {Black has more active pieces.} 25. Be1 f6 26. Rd4 Kd8 27. Rxe4 Rxe4 $19 28. Rxf6 Rxc4 $15 {[%mdl 4096] Endgame KRB-KRB} 29. Rf5 (29. a3 $142) 29... Ra4 $19 30. g4 Rxa2 31. Bg3 $2 (31. Rxg5 Rg2+ 32. Kh1) 31... a5 32. Rxg5 $2 (32. Rf2 Bxd5 33. Rxa2 Bxa2 34. e4) 32... a4 33. Rg8+ Ke7 34. Rg7+ Ke8 35. Rxc7 Rg2+ 36. Kf1 Ba6+ $1 ({Stronger than} 36... Bxd5 37. Bxd6 Rxg4 38. Ra7 $17) 37. c4 a3 $2 (37... Rxg3 $1 $19 {is more deadly.} 38. hxg3 a3) 38. Bxd6 $17 a2 {[%cal Ra2a1]} 39. Be5 Rxh2 {[%mdl 64] Hoping for ...Rc2. Deflection, Promotion} ({Worse is} 39... Rxg4 40. d6 Bxc4+ 41. Ke1 $15) 40. d6 $2 {[#] White does not recover from this.} (40. Kg1 $17 Re2 41. Bh8) 40... a1=Q+ $1 {[%mdl 512]} 41. Bxa1 Rh1+ {[%mdl 64] Skewer} 42. Kf2 {d7+ would kill now.} Rxa1 $19 {KRB-KR} 43. Kg3 Rc1 $1 44. Kxh3 Rxc4 45. Re7+ Kd8 46. e4 Rd4 47. e5 Bc8 48. Rg7 {[#]} (48. Ra7 $19 Bxg4+ 49. Kh4) 48... Rxg4 $1 {[%mdl 512] Black mates.} 49. Rxg4 {[#]} b5 $1 {[%cal Bb6b5,Bb5b4,Bb4b3,Bb3b2][%mdl 32]} 50. Kg3 Bxg4 51. Kxg4 {[#]} b4 $1 52. Kf5 b3 ({Don't do} 52... Kd7 53. Ke4 b3 54. Kd3 b2 55. Kc2 b1=R 56. Kxb1 Ke6 57. Kb2) 53. Kf6 b2 {Artfully played by Peralta.   Weighted Error Value: White=0.61/Black=0.18 (very precise)} 0-1

[Event "Lliga Catalana DH 2023"]
[Site "Catalonia"]
[Date "2023.03.18"]
[Round "9.3"]
[White "Gonzalez Garcia, Jose"]
[Black "Kozlov, Gennady"]
[Result "1-0"]
[ECO "A40"]
[WhiteElo "2450"]
[BlackElo "2384"]
[Annotator "TA"]
[PlyCount "139"]
[EventDate "2023.01.24"]
[EventType "team-tourn"]
[EventCountry "ESP"]
[SourceTitle "playchess.com"]
[Source "ChessBase"]
[SourceQuality "1"]
[TimeControl "40/5400+30:1800+30"]

{[%evp 9,139,31,35,46,41,39,41,22,36,19,33,44,39,29,62,62,75,61,72,64,79,70,97,93,93,57,76,64,63,57,58,57,52,56,52,53,76,77,74,60,60,60,57,57,60,61,68,46,68,14,55,0,118,91,135,127,127,127,235,235,234,256,255,255,255,245,252,252,508,605,605,598,583,441,510,522,522,522,1260,522,1284,523,1082,426,3711,2529,3373,319,5206,2954,12119,7258,29958,7700,2727,2598,29963,29952,29966,29967,29967,29968,29969,29969,29970,29971,29971,29972,29972,29973,29973,29974,29974,29975,29975,29975,29976,29977,29977,29978,29976,29973,29972,29972,29981,29982,29982,29983,29989,29990,29990,29991]} 1. d4 e6 2. c4 Bb4+ 3. Bd2 Bxd2+ 4. Qxd2 f5 5. Nc3 Nf6 6. g3 {A40: Unusual replies to 1 d4.} d6 7. Bg2 O-O 8. e3 {White is slightly better.} Qe7 9. Nge2 c6 {[#]} 10. O-O $146 ({Predecessor:} 10. O-O-O d5 11. cxd5 cxd5 12. f3 Nbd7 13. Nf4 Nb6 14. Kb1 Bd7 15. h4 Nc4 16. Qf2 {1-0 Riedel,W (2320)-Gallus,G (2290) Munich op 9192 1992 (7)}) 10... Nbd7 11. Qc2 d5 12. cxd5 Nxd5 13. Rac1 N7f6 14. Qb3 Kh8 15. Nf4 Nxc3 16. Qxc3 Nd5 17. Qc5 Qxc5 18. Rxc5 Nxf4 19. gxf4 Bd7 20. b4 {[%cal Ob4b5]} a6 21. Rfc1 Kg8 22. a4 Rac8 23. Kf1 Kf7 24. Ke2 Ke7 25. Kd2 Kd6 26. Bf3 Rf6 27. h4 Rh6 28. Rg1 Rg6 29. Rg3 (29. Rh1 $14) 29... b6 30. Rc1 (30. Rxg6 $14 hxg6 31. Rc1) 30... Be8 (30... Rxg3 $11 {keeps the balance.} 31. fxg3 c5) 31. Be2 {White is more active. White leaves nothing to chance now.} Ra8 32. Rxg6 hxg6 $16 {[%mdl 4096] Endgame KRB-KRB} 33. a5 Rb8 (33... b5 $16 34. Bf3 Rc8) 34. axb6 $1 $18 ({Weaker is} 34. Bxa6 bxa5 35. bxa5 Ra8 $14) 34... Rxb6 35. Kc3 Rb8 36. Ra1 ({Resist} 36. Bxa6 $6 Ra8 $16) 36... Ra8 37. Rxa6 ({Not} 37. Bxa6 Bd7 $16) 37... Rxa6 38. Bxa6 {KB-KB} Bf7 $2 (38... Kc7 39. b5 Kb6) 39. Bc4 Kc7 40. f3 Kd6 41. Kb3 Kc7 42. Ka4 Kb6 43. e4 Bg8 44. b5 (44. e5 $142 {Threatens to win with b5.} Bf7 45. b5) 44... Bf7 45. Kb4 (45. e5 $142 g5 46. fxg5 cxb5+ 47. Bxb5) 45... Bg8 46. bxc6 (46. e5 $142 cxb5 47. Bxb5) 46... Kxc6 (46... fxe4 $142 47. fxe4 Kxc6) 47. Bb5+ Kd6 48. Be8 $2 (48. e5+ Ke7 49. Kc5) 48... Bh7 $2 {[#]} (48... fxe4 49. fxe4 Bh7 50. e5+ Ke7) 49. e5+ $1 Ke7 50. Bb5 {White threatens Kc5 and mate.} Bg8 51. Kc5 {White wants to mate with Ba4.} Bf7 52. Bc6 Bg8 {[#]} 53. d5 $1 {White mates.} exd5 54. Bxd5 Bh7 55. Kc6 g5 56. fxg5 Bg6 57. f4 Bh5 58. Kc5 Be2 59. Kd4 g6 60. Ke3 Bb5 61. Bf3 Be8 62. Kf2 Kf8 {[#]} 63. h5 $1 gxh5 64. Kg3 Kg7 65. Kh4 Bf7 66. Bxh5 Bd5 67. Be8 Be4 68. g6 Kh6 69. e6 Kg7 70. Kg5 {Weighted Error Value: White=0.49/Black=0.39} 1-0

[Event "Lliga Catalana DH 2023"]
[Site "Catalonia"]
[Date "2023.03.18"]
[Round "9.3"]
[White "Dominguez Pons, Eric"]
[Black "Fluvia Poyatos, Joan"]
[Result "1-0"]
[ECO "B22"]
[WhiteElo "2333"]
[BlackElo "2463"]
[Annotator "TA"]
[PlyCount "71"]
[EventDate "2023.01.24"]
[EventType "team-tourn"]
[EventCountry "ESP"]
[SourceTitle "playchess.com"]
[Source "ChessBase"]
[SourceQuality "1"]
[TimeControl "40/5400+30:1800+30"]

{[%evp 14,71,19,9,95,114,104,0,0,0,0,0,0,10,34,54,78,0,0,0,0,-97,75,94,87,77,99,81,121,81,200,169,263,278,327,360,345,340,400,396,383,315,460,631,612,608,620,511,589,589,550,516,526,431,811,808,1379,620,12826,10010]} 1. e4 {[%emt 0:00:18]} c5 {[%emt 0:01:02]} 2. c3 {[%emt 0:01:00]} d5 {[%emt 0:01:04]} 3. exd5 {[%emt 0:01:45]} Qxd5 {[%emt 0:00:09]} 4. d4 {[%emt 0:00:39]} Nf6 {[%emt 0:00:07]} 5. Nf3 {[%emt 0:00:29]} Bg4 {[%emt 0:00:20]} 6. Nbd2 {[%emt 0:01:55]} Nc6 {[%emt 0:10:19]} 7. Bc4 {[%emt 0:16:07]} Bxf3 {[%emt 0:30:35]} 8. Qb3 {[%emt 0:01:59][%cal Od2f3]} Bxg2 {[%emt 0:02:03] B22: Sicilian: 2 c3.} (8... Na5 $1 $11 {keeps the balance.} 9. Qb5+ Qd7 10. Nxf3 (10. gxf3 Nxc4 11. Qxd7+ Kxd7 $15) 10... Nxc4 11. Qxc4 cxd4) 9. Bxd5 $16 {[%emt 0:11:03]} Bxd5 {[%emt 0:00:06] [#]} 10. Nc4 $146 {[%emt 0:36:52]} ({Predecessor:} 10. Qxb7 Nxd4 11. Qa6 Nc2+ 12. Ke2 Nxa1 13. Rd1 Rd8 14. Qa4+ Nd7 15. Nf3 Be6 16. Be3 g6 17. Rxa1 {½-½ Dos Santos,R (2441)-Flores,D (2579) American Continental 06th 2009 (3)}) 10... Bxh1 $11 {[%emt 0:27:51] The position is equal.} 11. Qxb7 {[%emt 0:00:31]} Rd8 {[%emt 0:03:24]} 12. Na5 {[%emt 0:13:43]} Nxa5 {[%emt 0:00:31]} (12... Nxd4 13. Qxh1 Nc2+ 14. Ke2 Nxa1 15. Qc6+ Nd7 16. Nb7 $16) (12... Rd7 $5 {[%cal Rd7b7]} 13. Qa8+ Rd8 $15) 13. Qxh1 {[%emt 0:01:33]} e6 {[%emt 0:00:31]} (13... Rc8 $5 {[%cal Rc5d4]} 14. dxc5 Nc6 $11) 14. dxc5 $1 {[%emt 0:01:20]} Nd5 {[%emt 0:00:40]} 15. b4 {[%emt 0:01:57]} (15. Qf1 $1 $16 {[%cal Rf1b5] Qb5+ would be deadly.} Nc6 16. Qa6) 15... Nc6 {[%emt 0:02:14]} 16. a3 {[%emt 0:03:47]} Ne5 {[%emt 0:02:58] And now ...Be7 would win.} 17. Bd2 {[%emt 0:01:36]} (17. c4 $1 $11 {remains equal.} Nxc4 18. Qe4) 17... Be7 $2 {[%emt 0:00:39]} (17... f5 $1 $17 {stays on course. Threatens to win with ...Kf7.} 18. Qg2 Be7) 18. Qe4 $16 {[%emt 0:00:27][%mdl 1024] White has strong compensation. Black is on the road to losing.} Bf6 {[%emt 0:01:57] [#]} 19. O-O-O $1 {[%emt 0:00:44][%cal Be1c1,Bc1d1,Bd1c2][%mdl 32]} O-O {[%emt 0:00:33][%cal Od5b4] [#] Hoping for ...Nxb4!} 20. c4 $1 {[%emt 0:00:27]} Ne7 {[%emt 0:01:07] Strongly threatening ...Nd3+.} 21. Bc3 {[%emt 0:00:54] Some like it hot} Rxd1+ {[%emt 0:04:11]} (21... Nd7 $16) 22. Kxd1 $18 {[%emt 0:00:04]} Rd8+ {[%emt 0:00:03]} (22... N5g6 $142 23. Bxf6 gxf6) 23. Kc2 {[%emt 0:00:17]} N5c6 {[%emt 0:00:13]} 24. Bxf6 {[%emt 0:01:49]} gxf6 {[%emt 0:00:03]} 25. b5 {[%emt 0:00:07]} Ne5 {[%emt 0:00:34]} 26. f4 {[%emt 0:01:06]} N5g6 {[%emt 0:05:51]} 27. c6 {[%emt 0:00:45] c7 is the strong threat.} f5 {[%emt 0:01:59]} (27... Rc8 $142 28. Qd4 Nxc6 29. bxc6 Rxc6) 28. Qe3 {[%emt 0:00:31] White is clearly winning.} Nc8 {[%emt 0:00:04]} 29. a4 {[%emt 0:00:31]} e5 {[%emt 0:01:02]} 30. fxe5 {[%emt 0:00:11]} f4 {[%emt 0:00:07]} 31. Qe4 {[%emt 0:00:16]} Re8 {[%emt 0:00:07]} 32. Qf5 {[%emt 0:00:48]} Nb6 {[%emt 0:01:02]} 33. c7 {[%emt 0:00:40]} Nxe5 {[%emt 0:01:34]} (33... Rc8 $142 34. a5 Rxc7) 34. c5 {[%emt 0:00:31]} ({Not} 34. Qxf4 Nexc4 35. a5 Nxa5 $18) 34... Nbd7 {[%emt 0:01:13]} 35. Qxf4 {[%emt 0:00:26]} (35. Qg5+ $142 Kf8 36. Qd8) 35... Rc8 {[%emt 0:01:04]} 36. Qg5+ {[%emt 0:00:11] A cool game by Dominguez Pons.   Weighted Error Value: White=0.45/Black=0.41} 1-0